bitfinex/quotes_SOLUSD_20240813
["timestamp","ask_amount","ask_price","bid_price","bid_amount"]
[1723581954594,12.28868084,146.71,146.68,6.8174]
[1723581954908,26.39785174,146.72,146.68,6.8174]
[1723581955086,14.1091709,146.72,146.68,6.8174]
[1723581955284,7.2933709,146.72,146.68,6.8174]
[1723581955582,0.8264709,146.72,146.68,6.8174]
[1723581955792,13.11515174,146.72,146.68,6.8174]
[1723581955995,14.76800982,146.72,146.68,6.8174]
[1723581956196,7.6421709,146.72,146.67,6.8179]
[1723581956588,6.8161,146.71,146.67,6.8179]
[1723581958012,6.8161,146.71,146.64,12.57]
[1723581958013,0.38572304,146.7,146.64,6.819]
[1723581958209,0.38572304,146.7,146.62,16.647]
[1723581958210,0.12549,146.69,146.62,16.647]
[1723581958412,6.8188,146.66,146.61,6.8204]
[1723581958583,0.38572304,146.65,146.61,6.8204]
[1723581959281,7.20462304,146.65,146.61,6.8204]
[1723581959524,12.69549,146.67,146.62,6.82]
[1723581959686,19.51389,146.67,146.62,6.82]
[1723581959891,6.8185,146.66,146.62,6.8202]
[1723581960091,0.12549,146.65,146.62,6.8202]
[1723581960510,6.94459,146.65,146.59,6.8212]
[1723581960693,0.12549,146.65,146.61,6.8207]
[1723581962694,0.38572304,146.64,146.61,6.8207]
[1723581963019,0.12549,146.65,146.62,6.8202]
[1723581963792,0.12549,146.66,146.62,6.8202]
[1723581963994,7.58089304,146.66,146.62,6.8202]
[1723581964518,7.58089304,146.66,146.58,28.2017]
[1723581964519,7.58089304,146.66,146.61,6.8207]
[1723581964906,0.37647,146.66,146.58,28.2017]
[1723581965104,0.37647,146.66,146.59,20.0]
[1723581966104,7.58069304,146.66,146.62,6.8203]
[1723581966304,0.37647,146.66,146.62,6.8203]
[1723581966521,0.25098,146.66,146.63,6.8197]
[1723581966829,16.4069,146.68,146.65,6.8189]
[1723581967135,16.4069,146.68,146.6,12.57]
[1723581967136,16.4069,146.68,146.62,12.57]
[1723581967506,6.8166,146.7,146.62,12.57]
[1723581967719,6.8166,146.7,146.63,45.0]
[1723581968028,32.55494223,146.71,146.66,6.8183]
[1723581968224,32.55494223,146.71,146.67,6.8179]
[1723581968225,6.0413,146.71,146.67,6.8179]
[1723581968601,13.24322304,146.71,146.67,6.8179]
[1723581968932,12.8575,146.71,146.66,6.8183]
[1723581969521,0.38572304,146.7,146.66,6.8183]
[1723581969703,12.8575,146.71,146.66,6.8183]
[1723581970858,12.8575,146.71,146.67,6.8178]
[1723581973024,6.0413,146.71,146.67,6.8178]
[1723581973219,12.8575,146.71,146.67,6.8178]
[1723581973424,6.42702304,146.71,146.66,6.8184]
[1723581973755,6.94299,146.69,146.64,6.8193]
[1723581974129,0.51121304,146.68,146.63,6.8197]
[1723581974464,6.94309,146.68,146.63,6.8198]
[1723581974635,6.94309,146.68,146.64,6.8193]
[1723581974827,7.20332304,146.68,146.6,12.57]
[1723581975245,6.8181,146.67,146.6,12.57]
[1723581975536,6.8181,146.67,146.58,21.9909]
[1723581975537,7.20382304,146.67,146.58,34.5609]
[1723581975746,0.38572304,146.67,146.59,45.0]
[1723581976060,0.38572304,146.67,146.58,34.5609]
[1723581976751,12.82098,146.69,146.64,6.819]
[1723581976953,12.82098,146.69,146.65,6.8189]
[1723581977359,12.69549,146.69,146.65,6.8189]
[1723581977734,19.51259,146.69,146.64,6.8192]
[1723581979551,19.51259,146.69,146.63,6.8197]
[1723581979552,0.12549,146.67,146.63,6.8197]
[1723581979931,0.51121304,146.67,146.63,6.8197]
[1723581980536,7.32921304,146.67,146.63,6.8197]
[1723581981054,6.8191,146.65,146.6,6.8211]
[1723581981255,0.38572304,146.64,146.6,6.8211]
[1723581981937,12.57,146.63,146.55,2.97718932]
[1723581982145,7.20612304,146.62,146.54,15.4955]
[1723581982348,0.38572304,146.62,146.59,6.8216]
[1723581982535,0.25098,146.64,146.55,12.57]
[1723581982852,0.63670304,146.64,146.6,6.8212]
[1723581983053,12.82098,146.63,146.54,15.4955]
[1723581983228,12.82098,146.63,146.53,12.57]
[1723581983229,12.69549,146.61,146.53,12.57]
[1723581983546,0.38572304,146.6,146.57,6.8226]
[1723581984159,0.12549,146.61,146.58,6.8221]
[1723581984338,0.25098,146.62,146.58,6.8221]
[1723581984656,0.25098,146.65,146.61,6.8208]
[1723581984856,0.37647,146.64,146.61,6.8208]
[1723581985450,0.37647,146.64,146.6,6.8211]
[1723581985750,6.82,146.63,146.53,31.31]
[1723581985959,6.82,146.63,146.58,6.8218]
[1723581985960,0.38572304,146.63,146.58,6.8218]
[1723581986832,0.37647,146.64,146.59,6.8215]
[1723581987658,0.37647,146.64,146.6,6.8212]
[1723581989156,0.37647,146.64,146.59,6.8216]
[1723581989359,7.19597,146.64,146.59,6.8216]
[1723581989578,7.20572304,146.63,146.58,6.822]
[1723581989746,0.37647,146.62,146.57,6.8223]
[1723581989949,0.37647,146.62,146.58,6.8221]
[1723581990140,0.38572304,146.63,146.59,6.8215]
[1723581990342,0.51121304,146.63,146.59,6.8215]
[1723581991458,0.51121304,146.63,146.58,6.822]
[1723581992244,0.12549,146.62,146.53,31.31]
[1723581992555,0.12549,146.61,146.56,6.8227]
[1723581992939,0.51121304,146.61,146.56,6.8227]
[1723581993335,0.51121304,146.61,146.57,6.8225]
[1723581993551,0.12549,146.61,146.58,6.822]
[1723581994163,0.51121304,146.61,146.58,6.822]
[1723581994851,0.12549,146.61,146.57,6.8225]
[1723581995163,0.25098,146.61,146.58,6.822]
[1723581995347,0.12549,146.61,146.58,6.822]
[1723581996960,0.51121304,146.61,146.58,6.822]
[1723581998556,0.12549,146.61,146.58,6.822]
[1723581998944,15.49349,146.62,146.53,31.31]
[1723581999149,15.368,146.62,146.59,6.8215]
[1723581999351,15.75372304,146.62,146.59,6.8215]
[1723582000371,15.368,146.62,146.59,6.8215]
[1723582001584,0.51121304,146.61,146.58,6.8221]
[1723582002580,15.368,146.62,146.59,6.8216]
[1723582002784,0.38572304,146.61,146.58,6.8221]
[1723582003459,0.38572304,146.61,146.54,20.0]
[1723582003460,0.38572304,146.61,146.57,6.8225]
[1723582004393,0.25098,146.6,146.56,6.823]
[1723582004559,0.63670304,146.6,146.57,6.8226]
[1723582005770,0.12549,146.6,146.57,6.8226]
[1723582005969,0.63670304,146.6,146.56,6.8229]
[1723582006172,0.25098,146.6,146.57,6.8224]
[1723582006370,0.12549,146.6,146.58,6.822]
[1723582006585,0.25098,146.61,146.58,6.822]
[1723582006766,0.12549,146.61,146.58,6.822]
[1723582007395,0.51121304,146.61,146.58,6.822]
[1723582008285,0.12549,146.61,146.58,6.822]
[1723582008591,0.37647,146.61,146.58,6.822]
[1723582008786,0.12549,146.61,146.54,32.53]
[1723582008975,0.12549,146.61,146.59,6.8215]
[1723582009181,0.12549,146.61,146.58,6.822]
[1723582011763,0.25098,146.61,146.57,6.8225]
[1723582011998,0.63670304,146.61,146.56,6.823]
[1723582012187,0.12549,146.6,146.56,6.823]
[1723582013477,0.12549,146.6,146.57,6.8226]
[1723582014901,0.25098,146.6,146.56,6.8229]
[1723582015698,0.25098,146.6,146.57,6.8226]
[1723582017300,0.25098,146.6,146.56,6.8229]
[1723582020001,0.25098,146.6,146.58,6.822]
[1723582020924,7.24603572,146.61,146.58,6.822]
[1723582021481,0.38572304,146.6,146.58,6.822]
[1723582021993,0.38572304,146.6,146.57,6.8225]
[1723582026819,7.24603572,146.61,146.54,12.53]
[1723582026999,7.24603572,146.61,146.59,6.8217]
[1723582027400,7.24603572,146.61,146.58,6.822]
[1723582027600,7.63175876,146.61,146.58,6.822]
[1723582027840,7.24603572,146.61,146.58,6.822]
[1723582028329,0.38572304,146.6,146.57,6.8225]
[1723582032241,7.24603572,146.61,146.57,6.8225]
[1723582032420,22.9537,146.66,146.59,12.53]
[1723582032618,22.9537,146.66,146.63,6.8198]
[1723582034225,0.12549,146.65,146.63,6.8198]
[1723582034528,12.41715934,146.65,146.63,6.8198]
[1723582034751,0.12549,146.65,146.63,6.8198]
[1723582035230,0.12549,146.65,146.62,6.8203]
[1723582036046,0.76219304,146.65,146.6,6.8208]
[1723582036750,13.05249142,146.65,146.6,6.8208]
[1723582037333,0.76219304,146.65,146.61,6.8206]
[1723582037535,0.37647,146.65,146.62,6.8203]
[1723582038347,0.37647,146.65,146.61,6.8207]
[1723582038545,0.76219304,146.65,146.61,6.8207]
[1723582040822,0.37647,146.65,146.61,6.8207]
[1723582041130,0.76219304,146.65,146.61,6.8207]
[1723582042857,0.12549,146.64,146.57,12.53]
[1723582043049,0.12549,146.63,146.57,12.53]
[1723582043248,0.12549,146.63,146.59,6.8216]
[1723582043249,0.37647,146.63,146.59,6.8216]
[1723582043548,0.37647,146.63,146.53,28.2925]
[1723582043852,0.12549,146.61,146.53,28.2925]
[1723582044044,0.37647,146.61,146.53,28.2925]
[1723582044248,0.37647,146.61,146.57,6.8223]
[1723582045375,0.76219304,146.61,146.57,6.8223]
[1723582046047,0.76219304,146.61,146.58,6.8221]
[1723582049058,0.76219304,146.61,146.57,6.8225]
[1723582049563,0.76219304,146.61,146.58,6.8222]
[1723582050992,0.76219304,146.61,146.57,6.8226]
[1723582051578,19.3484,146.67,146.57,12.53]
[1723582051975,7.1241072,146.65,146.57,12.53]
[1723582052488,7.1241072,146.65,146.61,6.8208]
[1723582052658,0.37647,146.64,146.61,6.8208]
[1723582052977,0.25098,146.63,146.6,6.8211]
[1723582056286,0.63670304,146.63,146.6,6.8211]
[1723582056889,0.63670304,146.63,146.57,12.53]
[1723582057674,0.63670304,146.63,146.58,6.8219]
[1723582057989,0.63670304,146.63,146.58,6.8221]
[1723582058801,0.12549,146.61,146.57,6.8225]
[1723582058993,0.12549,146.62,146.58,6.8221]
[1723582059190,0.25098,146.63,146.59,6.8216]
[1723582060397,0.63670304,146.63,146.59,6.8216]
[1723582061874,0.25098,146.63,146.55,12.53]
[1723582062080,0.12549,146.61,146.58,6.8221]
[1723582062790,0.25098,146.62,146.58,6.8221]
[1723582064293,0.25098,146.62,146.59,6.8216]
[1723582066805,0.63670304,146.62,146.58,6.8221]
[1723582067111,0.25098,146.62,146.58,6.8221]
[1723582067320,0.12549,146.61,146.57,6.8225]
[1723582067903,0.12549,146.61,146.58,6.8221]
[1723582070624,6.94709,146.6,146.54,6.8237]
[1723582070823,0.12549,146.58,146.51,12.53]
[1723582071711,0.12549,146.58,146.49,16.5488]
[1723582071712,0.12549,146.56,146.49,16.5488]
[1723582071900,16.66631304,146.56,146.48,12.53]
[1723582072087,16.66631304,146.56,146.5,6.8256]
[1723582072088,0.12549,146.54,146.5,6.8256]
[1723582072292,0.51121304,146.54,146.5,6.8256]
[1723582072694,7.62267784,146.54,146.5,6.8256]
[1723582078306,7.62267784,146.54,146.46,12.53]
[1723582078307,7.62267784,146.54,146.51,6.8252]
[1723582081939,7.62267784,146.54,146.44,16.5488]
[1723582082120,0.12549,146.52,146.44,29.0788]
[1723582082324,0.51121304,146.52,146.47,6.8269]
[1723582082618,0.25098,146.51,146.47,6.8269]
[1723582082827,7.362968,146.51,146.47,6.8269]
[1723582083017,0.38572304,146.5,146.47,6.8269]
[1723582083808,0.38572304,146.5,146.48,6.8268]
[1723582084208,0.38572304,146.5,146.47,6.8272]
[1723582084409,0.12549,146.49,146.45,6.8279]
[1723582084612,0.12549,146.47,146.44,6.8284]
[1723582087011,0.38572304,146.48,146.4,22.1356]
[1723582087012,0.38572304,146.48,146.43,12.53]
[1723582087212,0.12549,146.48,146.46,6.8274]
[1723582087437,22.829088,146.51,146.48,6.8264]
[1723582088438,0.38572304,146.5,146.46,6.8273]
[1723582088643,22.829088,146.51,146.44,12.53]
[1723582089137,22.829088,146.51,146.48,6.8267]
[1723582089541,0.38572304,146.5,146.47,6.8272]
[1723582089923,22.829088,146.51,146.48,6.8267]
[1723582090442,12.9692,146.54,146.5,6.8259]
[1723582090443,6.1451,146.54,146.5,6.8259]
[1723582091626,0.37647,146.53,146.5,6.8259]
[1723582092031,0.37647,146.53,146.49,6.8263]
[1723582093918,0.76219304,146.53,146.48,6.8267]
[1723582094445,7.58679304,146.53,146.47,6.8273]
[1723582094816,0.37647,146.53,146.48,6.8268]
[1723582095957,0.37647,146.53,146.49,6.8263]
[1723582096131,0.76219304,146.53,146.46,12.53]
[1723582096637,0.76219304,146.53,146.48,6.8268]
[1723582096851,0.37647,146.53,146.49,6.8262]
[1723582097551,0.12549,146.54,146.5,6.8258]
[1723582097731,0.25098,146.54,146.5,6.8258]
[1723582098855,0.25098,146.54,146.49,6.8262]
[1723582099721,0.63670304,146.54,146.49,6.8262]
[1723582100947,7.46070304,146.54,146.48,6.8268]
[1723582101251,0.12549,146.53,146.46,12.53]
[1723582101627,0.12549,146.52,146.46,12.53]
[1723582101821,0.51121304,146.52,146.46,12.53]
[1723582102345,0.25098,146.51,146.47,6.827]
[1723582102553,0.25098,146.51,146.46,6.8276]
[1723582103836,0.25098,146.51,146.47,6.8272]
[1723582104246,0.25098,146.51,146.48,6.8267]
[1723582106658,0.12549,146.52,146.46,12.53]
[1723582106847,0.12549,146.52,146.5,6.8258]
[1723582107237,0.63670304,146.52,146.49,6.8262]
[1723582107446,0.76219304,146.52,146.49,6.8262]
[1723582109549,0.76219304,146.52,146.46,12.53]
[1723582111349,0.76219304,146.52,146.49,6.8263]
[1723582111558,0.37647,146.52,146.49,6.8263]
[1723582111756,0.76219304,146.52,146.49,6.8263]
[1723582119550,0.37647,146.52,146.49,6.8263]
[1723582121163,0.37647,146.52,146.48,6.8264]
[1723582121344,45.37647,146.52,146.48,6.8264]
[1723582123147,0.38572304,146.51,146.48,6.8264]
[1723582123469,0.12549,146.5,146.48,6.8264]
[1723582125951,0.12549,146.5,146.41,22.7967]
[1723582125952,0.51121304,146.5,146.41,22.7967]
[1723582126154,0.51121304,146.5,146.46,6.8277]
[1723582126155,0.12549,146.48,146.46,6.8277]
[1723582126347,0.51121304,146.48,146.46,6.8277]
[1723582126759,0.51121304,146.48,146.42,20.0]
[1723582127158,0.12549,146.48,146.42,20.0]
[1723582127762,0.51121304,146.48,146.44,6.8284]
[1723582127965,0.51121304,146.48,146.42,20.0]
[1723582128173,0.51121304,146.48,146.41,12.53]
[1723582128355,0.51121304,146.48,146.42,20.0]
[1723582128556,0.51121304,146.48,146.45,6.8282]
[1723582135764,23.51021508,146.5,146.43,12.53]
[1723582136166,23.51021508,146.5,146.48,6.8265]
[1723582137181,0.12549,146.49,146.48,6.8265]
[1723582137381,0.12549,146.49,146.47,6.8272]
[1723582137885,0.12549,146.49,146.43,12.53]
[1723582138572,0.51121304,146.49,146.46,6.8275]
[1723582138975,0.12549,146.49,146.46,6.8275]
[1723582139174,0.37647,146.49,146.46,6.8275]
[1723582139689,0.76219304,146.49,146.46,6.8275]
[1723582140066,0.37647,146.49,146.46,6.8275]
[1723582140289,0.76219304,146.49,146.46,6.8275]
[1723582140685,0.37647,146.49,146.46,6.8275]
[1723582140869,0.25098,146.49,146.46,6.8275]
[1723582141181,0.12549,146.49,146.47,6.8272]
[1723582142570,23.51021508,146.5,146.47,6.8272]
[1723582142981,23.51021508,146.5,146.46,6.8276]
[1723582147861,0.63670304,146.49,146.44,6.8286]
[1723582148492,7.11170429,146.48,146.44,6.8286]
[1723582148695,0.38572304,146.47,146.44,6.8286]
[1723582148874,7.11170429,146.48,146.44,6.8286]
[1723582149187,7.49742733,146.48,146.44,6.8286]
[1723582149854,7.11170429,146.48,146.45,6.8282]
[1723582150061,0.25098,146.49,146.45,6.8282]
[1723582150988,23.51163699,146.5,146.44,12.53]
[1723582151199,22.3163,146.53,146.49,6.8264]
[1723582151491,7.11263596,146.52,146.49,6.8263]
[1723582152790,7.11263596,146.52,146.48,6.8267]
[1723582153001,0.12549,146.51,146.48,6.8267]
[1723582153298,0.12549,146.51,146.46,6.8277]
[1723582153299,0.37647,146.51,146.46,6.8277]
[1723582153592,0.76219304,146.51,146.46,6.8277]
[1723582156301,13.29219304,146.51,146.46,6.8277]
[1723582156675,12.90647,146.51,146.46,6.8277]
[1723582156999,12.90647,146.51,146.47,6.8273]
[1723582158399,7.498359,146.52,146.48,6.8267]
[1723582158712,0.38572304,146.5,146.47,6.8272]
[1723582159079,26.2405302,146.52,146.47,6.8272]
[1723582159305,26.62625324,146.52,146.47,6.8272]
[1723582159718,0.37647,146.51,146.47,6.8272]
[1723582160014,0.88768304,146.51,146.47,6.8272]
[1723582160176,45.88768304,146.51,146.47,6.8272]
[1723582160384,65.24308304,146.51,146.42,38.8678]
[1723582160613,65.24308304,146.51,146.43,30.0]
[1723582160781,58.03196,146.51,146.46,6.8277]
[1723582161107,58.03196,146.51,146.47,6.8272]
[1723582161272,58.41768304,146.51,146.47,6.8272]
[1723582161475,58.03196,146.51,146.47,6.8272]
[1723582161675,0.37647,146.51,146.48,6.8268]
[1723582161883,7.23346664,146.51,146.49,6.8263]
[1723582162085,7.10797664,146.51,146.5,6.8259]
[1723582162491,22.3163,146.53,146.5,6.8259]
[1723582162901,22.3163,146.53,146.49,6.8263]
[1723582163206,22.70202304,146.53,146.49,6.8263]
[1723582163502,22.3163,146.53,146.49,6.8263]
[1723582163884,0.12549,146.52,146.49,6.8263]
[1723582164505,0.12549,146.52,146.5,6.8258]
[1723582165904,22.3163,146.53,146.5,6.8258]
[1723582165905,15.751,146.53,146.5,6.8258]
[1723582166884,0.12549,146.53,146.5,6.8258]
[1723582168012,0.51121304,146.53,146.5,6.8258]
[1723582169282,0.51121304,146.53,146.49,6.8262]
[1723582171402,0.51121304,146.53,146.48,6.8267]
[1723582171616,7.33581304,146.53,146.48,6.8267]
[1723582172103,0.51121304,146.53,146.48,6.8267]
[1723582172404,7.33581304,146.53,146.47,6.8271]
[1723582172593,7.33581304,146.53,146.44,33.7311]
[1723582172594,7.33581304,146.53,146.48,6.8268]
[1723582173006,0.51121304,146.53,146.48,6.8268]
[1723582177095,0.12549,146.51,146.48,6.8268]
[1723582177290,0.51121304,146.51,146.48,6.8268]
[1723582185815,0.51121304,146.51,146.49,6.8262]
[1723582186316,0.12549,146.51,146.49,6.8262]
[1723582189321,7.10833671,146.52,146.46,12.53]
[1723582189725,12.30124628,146.56,146.48,28.1741]
[1723582189917,7.12714834,146.59,146.5,12.53]
[1723582190105,7.10777639,146.56,146.55,6.8232]
[1723582190423,12.68696932,146.6,146.56,6.8231]
[1723582190730,7.10808428,146.59,146.56,6.8231]
[1723582191310,7.10808428,146.59,146.57,6.8226]
[1723582192601,28.77334628,146.61,146.58,6.8222]
[1723582192826,16.4721,146.61,146.58,6.8222]
[1723582193125,16.4721,146.61,146.57,6.8225]
[1723582194213,12.29659937,146.61,146.57,6.8225]
[1723582194398,0.12549,146.61,146.57,6.8225]
[1723582194603,0.37647,146.61,146.57,6.8225]
[1723582198706,0.25098,146.61,146.57,6.8225]
[1723582198901,0.12549,146.61,146.57,6.8225]
[1723582199831,0.38572304,146.6,146.53,16.2556]
[1723582200013,0.38572304,146.6,146.54,50.0]
[1723582200631,0.38572304,146.6,146.55,6.8232]
[1723582200844,0.38572304,146.6,146.56,6.823]
[1723582201138,0.25098,146.61,146.56,6.823]
[1723582201905,0.12549,146.6,146.56,6.823]
[1723582202109,0.12549,146.6,146.55,6.8235]
[1723582202110,0.12549,146.59,146.55,6.8235]
[1723582204235,0.25098,146.59,146.55,6.8235]
[1723582204739,0.25098,146.59,146.5,28.3304]
[1723582204910,0.12549,146.58,146.53,6.8244]
[1723582205121,0.12549,146.57,146.53,6.8244]
[1723582205416,0.51121304,146.57,146.53,6.8244]
[1723582206541,0.12549,146.57,146.53,6.8244]
[1723582207032,0.63670304,146.57,146.53,6.8244]
[1723582207212,0.25098,146.57,146.54,6.824]
[1723582208824,0.12549,146.58,146.51,20.0]
[1723582209023,13.68257135,146.6,146.56,6.8227]
[1723582209024,0.25098,146.59,146.56,6.8227]
[1723582209429,0.12549,146.59,146.56,6.8227]
[1723582209623,7.10758135,146.6,146.56,6.8227]
[1723582210945,0.12549,146.59,146.56,6.8227]
[1723582211161,0.51121304,146.59,146.55,6.8234]
[1723582211838,0.12549,146.58,146.53,6.8243]
[1723582212030,0.25098,146.58,146.53,6.8243]
[1723582212838,6.94809,146.57,146.52,6.8249]
[1723582213142,0.38572304,146.56,146.52,6.8249]
[1723582213817,7.23881945,146.57,146.5,15.8004]
[1723582214018,7.23881945,146.57,146.51,32.53]
[1723582214339,7.23881945,146.57,146.54,6.824]
[1723582222449,7.11332945,146.57,146.54,6.824]
[1723582223545,15.6083,146.59,146.54,6.824]
[1723582223750,0.12549,146.58,146.54,6.824]
[1723582224250,0.51121304,146.58,146.54,6.824]
[1723582224749,0.12549,146.58,146.54,6.824]
[1723582225124,6.94769,146.58,146.53,6.8244]
[1723582225328,0.38572304,146.57,146.51,12.53]
[1723582225529,0.38572304,146.57,146.52,6.8249]
[1723582226656,0.12549,146.58,146.51,12.53]
[1723582226845,0.37647,146.58,146.51,12.53]
[1723582227947,0.76219304,146.58,146.54,6.8238]
[1723582232432,0.76219304,146.58,146.53,6.8243]
[1723582232661,7.58439304,146.58,146.53,6.8243]
[1723582233042,7.58439304,146.58,146.5,12.53]
[1723582233357,0.12549,146.56,146.5,12.53]
[1723582233545,0.51121304,146.56,146.5,12.53]
[1723582234343,0.51121304,146.56,146.52,6.8246]
[1723582234543,0.12549,146.56,146.53,6.8243]
[1723582237238,7.1093715,146.57,146.55,6.8235]
[1723582237442,22.0936,146.59,146.55,6.8235]
[1723582237641,29.20684149,146.59,146.55,6.8235]
[1723582238547,0.12549,146.58,146.54,6.8239]
[1723582240551,12.42361217,146.58,146.54,6.8239]
[1723582240750,0.12549,146.58,146.54,6.8239]
[1723582243072,12.42312207,146.58,146.54,6.8239]
[1723582243874,0.12549,146.56,146.5,12.53]
[1723582244371,0.12549,146.56,146.53,6.8244]
[1723582245271,0.12549,146.56,146.52,6.8248]
[1723582247974,7.23721945,146.56,146.52,6.8248]
[1723582248157,7.11172945,146.56,146.55,6.8236]
[1723582248358,12.29813688,146.6,146.54,12.53]
[1723582248567,16.0521,146.62,146.56,12.53]
[1723582248768,16.0521,146.62,146.58,6.822]
[1723582248965,16.0521,146.62,146.59,6.8216]
[1723582249157,13.73649864,146.63,146.61,6.8204]
[1723582249158,19.41103552,146.63,146.61,6.8204]
[1723582249357,7.11289864,146.63,146.61,6.8204]
[1723582252383,7.11289864,146.63,146.62,6.8203]
[1723582254086,7.11289864,146.63,146.61,6.8207]
[1723582256167,7.11289864,146.63,146.6,6.8212]
[1723582259187,7.11289864,146.63,146.61,6.8207]
[1723582260195,16.0521,146.66,146.62,6.8203]
[1723582260378,16.0521,146.66,146.61,6.8207]
[1723582260582,0.38572304,146.65,146.61,6.8207]
[1723582260977,0.38572304,146.65,146.6,6.8211]
[1723582261187,42.28268927,146.66,146.61,6.8207]
[1723582261387,29.98919219,146.66,146.61,6.8207]
[1723582261591,0.37647,146.65,146.61,6.8207]
[1723582263606,23.17039219,146.66,146.62,6.8203]
[1723582264798,23.17039219,146.66,146.64,6.8192]
[1723582265099,6.6236,146.69,146.66,6.8183]
[1723582265295,16.0748,146.7,146.66,6.8183]
[1723582265495,16.0748,146.7,146.67,6.8179]
[1723582265795,7.12729203,146.71,146.67,6.8179]
[1723582267314,7.12729203,146.71,146.69,6.8169]
[1723582267470,0.8264709,146.72,146.69,6.8169]
[1723582268089,0.8264709,146.72,146.68,6.8174]
[1723582268278,0.8264709,146.72,146.7,6.8166]
[1723582269385,0.8264709,146.72,146.69,6.8169]
[1723582269587,0.8264709,146.72,146.7,6.8165]
[1723582270305,0.8264709,146.72,146.71,6.8161]
[1723582270977,0.8264709,146.72,146.69,6.8169]
[1723582271979,0.8264709,146.72,146.7,6.8166]
[1723582273098,0.8264709,146.72,146.69,6.8169]
[1723582274186,0.8264709,146.72,146.69,12.53]
[1723582274903,0.8264709,146.72,146.7,6.8163]
[1723582275783,0.8264709,146.72,146.67,12.53]
[1723582275976,0.8264709,146.72,146.71,6.8161]
[1723582277580,0.8264709,146.72,146.67,12.53]
[1723582277786,0.8264709,146.72,146.68,26.8171]
[1723582278011,0.8264709,146.72,146.68,20.0]
[1723582278681,0.8264709,146.72,146.69,6.817]
[1723582279283,0.8264709,146.72,146.68,6.8175]
[1723582279583,1.21219394,146.72,146.68,6.8175]
[1723582280202,0.8264709,146.72,146.68,6.8175]
[1723582280588,0.8264709,146.72,146.69,6.817]
[1723582281994,0.8264709,146.72,146.65,12.53]
[1723582282195,0.8264709,146.72,146.66,65.0]
[1723582282603,0.8264709,146.72,146.69,6.817]
[1723582284898,0.8264709,146.72,146.7,6.8165]
[1723582285092,0.8264709,146.72,146.71,6.8161]
[1723582285616,0.8264709,146.72,146.67,12.53]
[1723582286792,0.8264709,146.72,146.68,6.8172]
[1723582288585,0.8264709,146.72,146.69,6.817]
[1723582288791,0.8264709,146.72,146.7,6.8164]
[1723582289319,0.8264709,146.72,146.69,6.8169]
[1723582293816,0.8264709,146.72,146.7,1.26763593]
[1723582294014,0.8264709,146.72,146.7,6.8164]
[1723582297153,0.8264709,146.72,146.69,6.8169]
[1723582297357,0.8264709,146.72,146.67,12.53]
[1723582297660,7.95267629,146.72,146.69,6.817]
[1723582298859,7.95267629,146.72,146.7,6.8166]
[1723582299240,7.95267629,146.72,146.68,6.8172]
[1723582299569,0.51121304,146.71,146.6,22.6113]
[1723582299854,6.8174,146.69,146.64,6.8194]
[1723582300022,0.38572304,146.68,146.64,6.8194]
[1723582300421,0.38572304,146.68,146.63,6.8197]
[1723582301455,0.38572304,146.68,146.64,6.8194]
[1723582301829,0.38572304,146.68,146.63,6.8197]
[1723582302138,0.38572304,146.68,146.6,35.1413]
[1723582302139,0.51121304,146.69,146.64,6.8192]
[1723582302457,0.51121304,146.69,146.65,6.8189]
[1723582304160,19.3467,146.7,146.65,6.8189]
[1723582304323,0.25098,146.69,146.65,6.8189]
[1723582306525,6.8163,146.71,146.66,6.8184]
[1723582306927,0.12549,146.71,146.67,6.818]
[1723582307161,7.95267629,146.72,146.67,6.818]
[1723582309556,7.95267629,146.72,146.68,6.8175]
[1723582311568,7.95267629,146.72,146.67,6.8179]